[Event "Betsys MČR v online bleskovém šachu 2021"]
[Site "Chess.com"]
[Date "2021.04.17"]
[Round "3"]
[White "SayQueen"]
[Black "jsebesta"]
[Result "1-0"]
[WhiteElo "1996"]
[BlackElo "1612"]
[TimeControl "180+1"]
[EndTime "9:28:07 PDT"]
[Termination "Uživatel SayQueen zvítězil na čas"]

1. e4 {[%clk 0:02:51.5]} 1... Nc6 {[%clk 0:02:58.5]} 2. Nf3 {[%clk 0:02:49.1]}
2... d6 {[%clk 0:02:49.2]} 3. d4 {[%clk 0:02:47]} 3... Bg4 {[%clk 0:02:48.6]} 4.
Be2 {[%clk 0:02:45.5]} 4... Bxf3 {[%clk 0:02:45]} 5. Bxf3 {[%clk 0:02:44.3]}
5... Nf6 {[%clk 0:02:34.4]} 6. O-O {[%clk 0:02:39.9]} 6... e5 {[%clk 0:02:31.9]}
7. Be3 {[%clk 0:02:29.9]} 7... exd4 {[%clk 0:02:17.8]} 8. Bxd4 {[%clk
0:02:28.9]} 8... Be7 {[%clk 0:02:17.7]} 9. Nc3 {[%clk 0:02:24.8]} 9... O-O
{[%clk 0:02:17.2]} 10. Be3 {[%clk 0:02:17.3]} 10... Ne5 {[%clk 0:02:15.7]} 11.
Be2 {[%clk 0:02:16.5]} 11... Qd7 {[%clk 0:02:10.2]} 12. h3 {[%clk 0:02:15.6]}
12... c6 {[%clk 0:01:49]} 13. f4 {[%clk 0:02:12.8]} 13... Ng6 {[%clk 0:01:47.5]}
14. Qe1 {[%clk 0:02:07.2]} 14... Qc7 {[%clk 0:01:42.1]} 15. Rd1 {[%clk
0:02:04.4]} 15... Rad8 {[%clk 0:01:32.6]} 16. Bf3 {[%clk 0:01:57.1]} 16... b6
{[%clk 0:01:20.5]} 17. Bd4 {[%clk 0:01:51.7]} 17... d5 {[%clk 0:01:12.2]} 18. f5
{[%clk 0:01:27.4]} 18... Ne5 {[%clk 0:00:43.7]} 19. Bxe5 {[%clk 0:01:01.4]}
19... Qxe5 {[%clk 0:00:43.2]} 20. exd5 {[%clk 0:01:01.3]} 20... Qxe1 {[%clk
0:00:43.1]} 21. Rfxe1 {[%clk 0:00:59.6]} 21... Bc5+ {[%clk 0:00:43.2]} 22. Kh1
{[%clk 0:00:56.6]} 22... cxd5 {[%clk 0:00:39.6]} 23. Nxd5 {[%clk 0:00:44.8]}
23... Nxd5 {[%clk 0:00:37.5]} 24. Rxd5 {[%clk 0:00:44.5]} 24... Rxd5 {[%clk
0:00:36.4]} 25. Bxd5 {[%clk 0:00:44.4]} 25... Rd8 {[%clk 0:00:32]} 26. c4 {[%clk
0:00:42.4]} 26... g6 {[%clk 0:00:28.9]} 27. f6 {[%clk 0:00:34.9]} 27... Kf8
{[%clk 0:00:21.1]} 28. g4 {[%clk 0:00:31.7]} 28... Re8 {[%clk 0:00:18.4]} 29.
Rd1 {[%clk 0:00:24.2]} 29... Bd6 {[%clk 0:00:12.5]} 30. Bc6 {[%clk 0:00:17.8]}
30... Rd8 {[%clk 0:00:10.8]} 31. Kg2 {[%clk 0:00:17.2]} 31... Bc7 {[%clk
0:00:10.7]} 32. Bd5 {[%clk 0:00:06.8]} 32... Re8 {[%clk 0:00:09.3]} 33. Kf3
{[%clk 0:00:05.4]} 33... Be5 {[%clk 0:00:08.6]} 34. b3 {[%clk 0:00:04.5]} 34...
Bxf6 {[%clk 0:00:08.6]} 35. Bc6 {[%clk 0:00:04.3]} 35... Rd8 {[%clk 0:00:07.9]}
36. Rxd8+ {[%clk 0:00:03.9]} 36... Bxd8 {[%clk 0:00:08]} 37. Ke4 {[%clk
0:00:04.2]} 37... Ke7 {[%clk 0:00:07.2]} 38. Kd5 {[%clk 0:00:04.2]} 38... Bc7
{[%clk 0:00:07.2]} 39. Bb7 {[%clk 0:00:04.2]} 39... Kd7 {[%clk 0:00:06.8]} 40.
Ke4 {[%clk 0:00:03.7]} 40... Bd6 {[%clk 0:00:06.6]} 41. Bd5 {[%clk 0:00:03.7]}
41... f6 {[%clk 0:00:06.2]} 42. Bg8 {[%clk 0:00:03.4]} 42... h6 {[%clk 0:00:06]}
43. Bh7 {[%clk 0:00:03.7]} 43... g5 {[%clk 0:00:06.4]} 44. Kf5 {[%clk
0:00:03.7]} 44... Be5 {[%clk 0:00:05.9]} 45. Kg6 {[%clk 0:00:03.8]} 45... Ke6
{[%clk 0:00:05.7]} 46. Kxh6 {[%clk 0:00:03.7]} 46... Kf7 {[%clk 0:00:06.1]} 47.
Bg6+ {[%clk 0:00:03.1]} 47... Kf8 {[%clk 0:00:05.5]} 48. Kh7 {[%clk 0:00:03.2]}
48... Bg3 {[%clk 0:00:04.3]} 49. Kh6 {[%clk 0:00:03.2]} 49... Bf4 {[%clk
0:00:04.2]} 50. Bf5 {[%clk 0:00:03.5]} 50... Kf7 {[%clk 0:00:03.7]} 51. Be4
{[%clk 0:00:03.8]} 51... Be5 {[%clk 0:00:02.1]} 52. Bd5+ {[%clk 0:00:04]} 52...
Ke7 {[%clk 0:00:01.9]} 53. Kg6 {[%clk 0:00:04.2]} 1-0

[Event "Betsys MČR v online bleskovém šachu 2021"]
[Site "Chess.com"]
[Date "2021.04.17"]
[Round "3"]
[White "reflexia64"]
[Black "kol340"]
[Result "1-0"]
[WhiteElo "2335"]
[BlackElo "1823"]
[TimeControl "180+1"]
[EndTime "9:28:10 PDT"]
[Termination "Uživatel reflexia64 zvítězil matem"]

1. g3 {[%clk 0:03:00.9]} 1... c6 {[%clk 0:02:54.4]} 2. Bg2 {[%clk 0:03:00.4]}
2... d5 {[%clk 0:02:55.3]} 3. d3 {[%clk 0:02:57.9]} 3... Nf6 {[%clk 0:02:55.7]}
4. Nd2 {[%clk 0:02:57.1]} 4... Bf5 {[%clk 0:02:55.7]} 5. e4 {[%clk 0:02:53.6]}
5... dxe4 {[%clk 0:02:55.7]} 6. dxe4 {[%clk 0:02:52.8]} 6... Bg4 {[%clk
0:02:55.4]} 7. f3 {[%clk 0:02:51.6]} 7... Bh5 {[%clk 0:02:55.3]} 8. Nh3 {[%clk
0:02:43.2]} 8... e6 {[%clk 0:02:54.6]} 9. Nf4 {[%clk 0:02:42.5]} 9... Bg6 {[%clk
0:02:52.2]} 10. Qe2 {[%clk 0:02:40.4]} 10... Bc5 {[%clk 0:02:48.5]} 11. Nb3
{[%clk 0:02:38.1]} 11... Nbd7 {[%clk 0:02:45.9]} 12. Nxc5 {[%clk 0:02:35.2]}
12... Nxc5 {[%clk 0:02:46.2]} 13. Be3 {[%clk 0:02:34.5]} 13... Qe7 {[%clk
0:02:46]} 14. O-O-O {[%clk 0:02:24.7]} 14... O-O {[%clk 0:02:45.1]} 15. h4
{[%clk 0:02:23.6]} 15... h5 {[%clk 0:02:38.9]} 16. Bh3 {[%clk 0:02:09.5]} 16...
Bh7 {[%clk 0:02:34.6]} 17. Rhg1 {[%clk 0:02:05.7]} 17... Rad8 {[%clk 0:02:33.5]}
18. g4 {[%clk 0:01:57.4]} 18... Rxd1+ {[%clk 0:02:31.5]} 19. Qxd1 {[%clk
0:01:56.6]} 19... Rd8 {[%clk 0:02:30.2]} 20. Qe2 {[%clk 0:01:50.1]} 20... hxg4
{[%clk 0:02:29.7]} 21. Bxg4 {[%clk 0:01:49.1]} 21... Nxg4 {[%clk 0:02:30]} 22.
Rxg4 {[%clk 0:01:48]} 22... f5 {[%clk 0:02:20.7]} 23. Bxc5 {[%clk 0:01:42.2]}
23... Qxc5 {[%clk 0:02:18.7]} 24. Nxe6 {[%clk 0:01:41.7]} 24... Rd1+ {[%clk
0:01:39.4]} 25. Qxd1 {[%clk 0:01:11.4]} 25... Qe3+ {[%clk 0:01:35.3]} 26. Kb1
{[%clk 0:01:07.6]} 26... fxg4 {[%clk 0:01:28.1]} 27. Qd8+ {[%clk 0:01:06]} 27...
Kf7 {[%clk 0:01:27.8]} 28. Ng5+ {[%clk 0:01:02.1]} 28... Kg6 {[%clk 0:01:15.1]}
29. Qe8+ {[%clk 0:00:54.9]} 29... Kh6 {[%clk 0:00:55.5]} 30. a3 {[%clk
0:00:35.4]} 30... gxf3 {[%clk 0:00:40.6]} 31. Qh8 {[%clk 0:00:29.5]} 31... Kh5
{[%clk 0:00:40]} 32. Qxh7+ {[%clk 0:00:28.8]} 32... Kg4 {[%clk 0:00:40.5]} 33.
Qf5+ {[%clk 0:00:26.8]} 33... Kg3 {[%clk 0:00:37.5]} 34. Qh3+ {[%clk 0:00:25.9]}
34... Kf4 {[%clk 0:00:35.6]} 35. Qxf3+ {[%clk 0:00:19.9]} 35... Qxf3 {[%clk
0:00:35.2]} 36. Nxf3 {[%clk 0:00:19.6]} 36... Kxe4 {[%clk 0:00:35]} 37. Ng5+
{[%clk 0:00:19.5]} 37... Kf5 {[%clk 0:00:33.3]} 38. c4 {[%clk 0:00:15.4]} 38...
Kg6 {[%clk 0:00:34.2]} 39. Kc2 {[%clk 0:00:13]} 39... Kh5 {[%clk 0:00:35.1]} 40.
Ne6 {[%clk 0:00:12.1]} 40... g6 {[%clk 0:00:34.7]} 41. Nf4+ {[%clk 0:00:11.9]}
41... Kh6 {[%clk 0:00:34.5]} 42. Kd3 {[%clk 0:00:11.4]} 42... g5 {[%clk
0:00:35.4]} 43. hxg5+ {[%clk 0:00:10.4]} 43... Kxg5 {[%clk 0:00:36.3]} 44. Ne6+
{[%clk 0:00:10.3]} 44... Kf6 {[%clk 0:00:37.2]} 45. Nd8 {[%clk 0:00:09.8]} 45...
b6 {[%clk 0:00:36.5]} 46. Nxc6 {[%clk 0:00:09.6]} 46... a6 {[%clk 0:00:36.1]}
47. Nb8 {[%clk 0:00:09.5]} 47... a5 {[%clk 0:00:36]} 48. Nd7+ {[%clk 0:00:10]}
48... Ke7 {[%clk 0:00:36.3]} 49. Nxb6 {[%clk 0:00:10.4]} 49... Kd6 {[%clk
0:00:37.2]} 50. b4 {[%clk 0:00:09.3]} 50... a4 {[%clk 0:00:36.8]} 51. Nxa4
{[%clk 0:00:08.5]} 51... Kc7 {[%clk 0:00:37.7]} 52. c5 {[%clk 0:00:08.7]} 52...
Kb8 {[%clk 0:00:38.6]} 53. Kc4 {[%clk 0:00:08.9]} 53... Ka7 {[%clk 0:00:39.5]}
54. b5 {[%clk 0:00:09.3]} 54... Kb7 {[%clk 0:00:40.4]} 55. c6+ {[%clk
0:00:09.4]} 55... Kc7 {[%clk 0:00:41.3]} 56. Kc5 {[%clk 0:00:09.7]} 56... Kb8
{[%clk 0:00:42.2]} 57. b6 {[%clk 0:00:09.9]} 57... Kc8 {[%clk 0:00:43.1]} 58. c7
{[%clk 0:00:09.8]} 58... Kb7 {[%clk 0:00:42.8]} 59. Nc3 {[%clk 0:00:09.6]} 59...
Kc8 {[%clk 0:00:43]} 60. Ne4 {[%clk 0:00:09.8]} 60... Kb7 {[%clk 0:00:43.9]} 61.
a4 {[%clk 0:00:09.9]} 61... Ka6 {[%clk 0:00:43.9]} 62. Nd6 {[%clk 0:00:08.6]}
62... Ka5 {[%clk 0:00:42.9]} 63. c8=Q {[%clk 0:00:07.7]} 63... Kxa4 {[%clk
0:00:31.4]} 64. Kc4 {[%clk 0:00:07.3]} 64... Ka3 {[%clk 0:00:31.1]} 65. Kc3
{[%clk 0:00:07.1]} 65... Ka2 {[%clk 0:00:31.2]} 66. Kc2 {[%clk 0:00:07.1]} 66...
Ka3 {[%clk 0:00:31.2]} 67. Qc5+ {[%clk 0:00:06.6]} 67... Ka4 {[%clk 0:00:31.2]}
68. Qb5+ {[%clk 0:00:06.6]} 68... Ka3 {[%clk 0:00:30.9]} 69. Qb3# {[%clk
0:00:06.5]} 1-0

[Event "Betsys MČR v online bleskovém šachu 2021"]
[Site "Chess.com"]
[Date "2021.04.17"]
[Round "3"]
[White "handlovskyjachym"]
[Black "JindrichT_JR_CZE"]
[Result "0-1"]
[WhiteElo "1358"]
[BlackElo "1003"]
[TimeControl "180+1"]
[EndTime "9:28:10 PDT"]
[Termination "Uživatel JindrichT_JR_CZE zvítězil na čas"]

1. e4 {[%clk 0:02:59.7]} 1... e5 {[%clk 0:02:57.8]} 2. Nf3 {[%clk 0:02:58.6]}
2... Nc6 {[%clk 0:02:55.8]} 3. Bc4 {[%clk 0:02:58.7]} 3... Bc5 {[%clk
0:02:54.6]} 4. d3 {[%clk 0:02:57.5]} 4... Nf6 {[%clk 0:02:53.8]} 5. O-O {[%clk
0:02:56.3]} 5... O-O {[%clk 0:02:52.4]} 6. Bg5 {[%clk 0:02:56.2]} 6... h6 {[%clk
0:02:51.9]} 7. Bh4 {[%clk 0:02:56.1]} 7... Be7 {[%clk 0:02:51.6]} 8. Nc3 {[%clk
0:02:55.5]} 8... d6 {[%clk 0:02:39.5]} 9. Bxf6 {[%clk 0:02:53.9]} 9... Bxf6
{[%clk 0:02:38.4]} 10. Nd5 {[%clk 0:02:54.3]} 10... Bg4 {[%clk 0:02:37]} 11. h3
{[%clk 0:02:48.4]} 11... Bxf3 {[%clk 0:02:34.6]} 12. Qxf3 {[%clk 0:02:47]} 12...
Nd4 {[%clk 0:02:27.4]} 13. Qd1 {[%clk 0:02:37.5]} 13... c6 {[%clk 0:02:24.4]}
14. Nxf6+ {[%clk 0:02:35.3]} 14... Qxf6 {[%clk 0:02:23.1]} 15. c3 {[%clk
0:02:34.1]} 15... Nb5 {[%clk 0:02:04.8]} 16. Bxb5 {[%clk 0:02:31.1]} 16... cxb5
{[%clk 0:01:57.5]} 17. f4 {[%clk 0:02:26.8]} 17... exf4 {[%clk 0:01:34.3]} 18.
Qg4 {[%clk 0:02:26.8]} 18... Rad8 {[%clk 0:01:24.5]} 19. Rxf4 {[%clk 0:02:26.5]}
19... Qg5 {[%clk 0:01:22.4]} 20. Qxg5 {[%clk 0:02:21.5]} 20... hxg5 {[%clk
0:01:21.3]} 21. Rg4 {[%clk 0:02:21.2]} 21... f6 {[%clk 0:01:19.9]} 22. Rf1
{[%clk 0:02:19.6]} 22... d5 {[%clk 0:01:16.2]} 23. exd5 {[%clk 0:02:17.7]} 23...
Rxd5 {[%clk 0:01:14.2]} 24. d4 {[%clk 0:02:16.1]} 24... Re8 {[%clk 0:01:07.8]}
25. Kf2 {[%clk 0:01:58.9]} 25... Rf5+ {[%clk 0:01:06.6]} 26. Kg1 {[%clk
0:01:44.5]} 26... Rxf1+ {[%clk 0:01:07]} 27. Kxf1 {[%clk 0:01:44.4]} 27... g6
{[%clk 0:01:07.1]} 28. Kf2 {[%clk 0:01:40.9]} 28... Kf7 {[%clk 0:01:07.6]} 29.
Rg3 {[%clk 0:01:40.7]} 29... Ke6 {[%clk 0:01:07.2]} 30. Re3+ {[%clk 0:01:40.7]}
30... Kd7 {[%clk 0:01:07.3]} 31. Rxe8 {[%clk 0:01:40.7]} 31... Kxe8 {[%clk
0:01:07.3]} 32. Ke3 {[%clk 0:01:40.8]} 32... Ke7 {[%clk 0:01:08.2]} 33. Ke4
{[%clk 0:01:39.6]} 33... Ke6 {[%clk 0:01:09.1]} 34. d5+ {[%clk 0:01:39.4]} 34...
Kd6 {[%clk 0:01:04.7]} 35. b3 {[%clk 0:01:35]} 35... f5+ {[%clk 0:01:04.7]} 36.
Kd4 {[%clk 0:01:34.2]} 36... b6 {[%clk 0:00:59.2]} 37. c4 {[%clk 0:01:29.2]}
37... bxc4 {[%clk 0:00:58.3]} 38. bxc4 {[%clk 0:01:29.2]} 38... a6 {[%clk
0:00:56.6]} 39. a4 {[%clk 0:01:23.7]} 39... a5 {[%clk 0:00:56]} 40. g3 {[%clk
0:01:19]} 40... g4 {[%clk 0:00:40.2]} 41. h4 {[%clk 0:01:13.7]} 41... Kd7 {[%clk
0:00:26.9]} 42. Ke5 {[%clk 0:01:13.7]} 42... Ke7 {[%clk 0:00:26.8]} 43. d6+
{[%clk 0:01:13.8]} 43... Kd7 {[%clk 0:00:26.6]} 44. Kf6 {[%clk 0:01:04.4]} 44...
f4 {[%clk 0:00:24]} 45. Kxg6 {[%clk 0:00:45.2]} 45... fxg3 {[%clk 0:00:21]} 46.
h5 {[%clk 0:00:45.7]} 46... g2 {[%clk 0:00:21.4]} 47. h6 {[%clk 0:00:46.2]}
47... g1=Q {[%clk 0:00:21.8]} 48. h7 {[%clk 0:00:46.9]} 48... Qh1 {[%clk
0:00:22.7]} 49. Kg7 {[%clk 0:00:46.7]} 49... Kxd6 {[%clk 0:00:22.8]} 50. h8=Q
{[%clk 0:00:46.2]} 50... Qxh8+ {[%clk 0:00:23.4]} 51. Kxh8 {[%clk 0:00:46.4]}
51... g3 {[%clk 0:00:24.3]} 52. Kg7 {[%clk 0:00:46.3]} 52... g2 {[%clk
0:00:25.2]} 53. Kf7 {[%clk 0:00:47]} 53... g1=Q {[%clk 0:00:26.1]} 54. Ke8
{[%clk 0:00:47.3]} 54... Qc1 {[%clk 0:00:27]} 55. Kd8 {[%clk 0:00:42.9]} 55...
Qxc4 {[%clk 0:00:27.9]} 56. Ke8 {[%clk 0:00:39.8]} 56... b5 {[%clk 0:00:28.8]}
57. axb5 {[%clk 0:00:39]} 57... Qxb5+ {[%clk 0:00:28.4]} 58. Kf8 {[%clk
0:00:37.2]} 58... a4 {[%clk 0:00:29.3]} 0-1

[Event "Betsys MČR v online bleskovém šachu 2021"]
[Site "Chess.com"]
[Date "2021.04.17"]
[Round "3"]
[White "JustFilip05"]
[Black "Jindrich4321"]
[Result "1-0"]
[WhiteElo "2140"]
[BlackElo "1936"]
[TimeControl "180+1"]
[EndTime "9:28:12 PDT"]
[Termination "Uživatel JustFilip05 zvítězil na čas"]

1. Nf3 {[%clk 0:02:58.1]} 1... f5 {[%clk 0:02:59]} 2. b3 {[%clk 0:02:43.1]} 2...
d6 {[%clk 0:02:57.3]} 3. Bb2 {[%clk 0:02:43.3]} 3... e5 {[%clk 0:02:56.8]} 4. d3
{[%clk 0:02:40.5]} 4... Nf6 {[%clk 0:02:56.1]} 5. Nbd2 {[%clk 0:02:40.4]} 5...
Nc6 {[%clk 0:02:55.2]} 6. e4 {[%clk 0:02:37.5]} 6... Be7 {[%clk 0:02:54.7]} 7.
g3 {[%clk 0:02:33]} 7... O-O {[%clk 0:02:52.2]} 8. Bg2 {[%clk 0:02:33.1]} 8...
Bd7 {[%clk 0:02:52.5]} 9. O-O {[%clk 0:02:32.4]} 9... Qe8 {[%clk 0:02:52.9]} 10.
Nh4 {[%clk 0:02:20]} 10... f4 {[%clk 0:02:43.9]} 11. Nf5 {[%clk 0:01:47.7]}
11... Bxf5 {[%clk 0:02:35.3]} 12. exf5 {[%clk 0:01:48.6]} 12... Qd7 {[%clk
0:02:33.4]} 13. g4 {[%clk 0:01:30.6]} 13... h6 {[%clk 0:02:32.8]} 14. Ne4 {[%clk
0:01:18.7]} 14... Nxe4 {[%clk 0:02:26.1]} 15. Bxe4 {[%clk 0:01:19.6]} 15... Bf6
{[%clk 0:02:24.5]} 16. Qf3 {[%clk 0:01:19]} 16... Rad8 {[%clk 0:02:18.2]} 17.
Bd5+ {[%clk 0:01:11.3]} 17... Kh8 {[%clk 0:02:17.4]} 18. Kg2 {[%clk 0:01:01.3]}
18... Rb8 {[%clk 0:02:12.5]} 19. Rh1 {[%clk 0:00:52.1]} 19... Nb4 {[%clk
0:01:49.3]} 20. Be6 {[%clk 0:00:26.6]} 20... Qe7 {[%clk 0:01:46.7]} 21. Qe2
{[%clk 0:00:13]} 21... Nc6 {[%clk 0:01:43.1]} 22. f3 {[%clk 0:00:12.1]} 22...
Nd8 {[%clk 0:01:39.9]} 23. Bc4 {[%clk 0:00:10.9]} 23... c6 {[%clk 0:01:35]} 24.
b4 {[%clk 0:00:11.1]} 24... Nf7 {[%clk 0:01:25.9]} 25. Qf2 {[%clk 0:00:09]}
25... b6 {[%clk 0:01:23.9]} 26. h4 {[%clk 0:00:08.7]} 26... d5 {[%clk
0:01:22.1]} 27. Bb3 {[%clk 0:00:08.6]} 27... e4 {[%clk 0:01:19.5]} 28. dxe4
{[%clk 0:00:08.2]} 28... Bxb2 {[%clk 0:01:16]} 29. Rab1 {[%clk 0:00:07.5]} 29...
Bf6 {[%clk 0:01:10.8]} 30. g5 {[%clk 0:00:07.8]} 30... Bxg5 {[%clk 0:00:58]} 31.
hxg5 {[%clk 0:00:08.7]} 31... Nxg5 {[%clk 0:00:57]} 32. exd5 {[%clk 0:00:08.1]}
32... cxd5 {[%clk 0:00:54.9]} 33. Bxd5 {[%clk 0:00:07.9]} 33... Rbc8 {[%clk
0:00:49]} 34. Bb3 {[%clk 0:00:08.1]} 34... Qf6 {[%clk 0:00:41.4]} 35. Rbe1
{[%clk 0:00:07.1]} 35... Qxf5 {[%clk 0:00:37.2]} 36. Qh4 {[%clk 0:00:07.4]}
36... Rcd8 {[%clk 0:00:31.7]} 37. Re2 {[%clk 0:00:07.3]} 37... Rde8 {[%clk
0:00:29.2]} 38. Rhe1 {[%clk 0:00:06.2]} 38... Rxe2+ {[%clk 0:00:27.9]} 39. Rxe2
{[%clk 0:00:07.1]} 39... Qf6 {[%clk 0:00:22.6]} 40. Qg4 {[%clk 0:00:06.7]} 40...
Qc6 {[%clk 0:00:20.4]} 41. Re5 {[%clk 0:00:05.6]} 41... Qf6 {[%clk 0:00:13.7]}
42. Rd5 {[%clk 0:00:04.6]} 42... Qe7 {[%clk 0:00:11.3]} 43. Qh5 {[%clk
0:00:04.3]} 43... Qe2+ {[%clk 0:00:10]} 44. Kh1 {[%clk 0:00:02.6]} 44... Qxf3+
{[%clk 0:00:08.7]} 45. Qxf3 {[%clk 0:00:02.9]} 45... Nxf3 {[%clk 0:00:08.6]} 46.
Kg2 {[%clk 0:00:03.6]} 46... Ng5 {[%clk 0:00:07.3]} 47. Rd4 {[%clk 0:00:02.3]}
47... f3+ {[%clk 0:00:06.9]} 48. Kf2 {[%clk 0:00:03]} 48... Nh3+ {[%clk
0:00:06.7]} 49. Kg3 {[%clk 0:00:03.6]} 49... f2 {[%clk 0:00:06.2]} 50. Bc4
{[%clk 0:00:04.2]} 50... Ng5 {[%clk 0:00:05.1]} 51. Bf1 {[%clk 0:00:04.2]} 51...
Kh7 {[%clk 0:00:03.9]} 52. Rd2 {[%clk 0:00:04.3]} 52... Rf7 {[%clk 0:00:03.7]}
53. Re2 {[%clk 0:00:03.6]} 53... h5 {[%clk 0:00:02.2]} 54. Kg2 {[%clk 0:00:03]}
54... g6 {[%clk 0:00:01.7]} 55. Rxf2 {[%clk 0:00:03.5]} 55... Rxf2+ {[%clk
0:00:01.1]} 56. Kxf2 {[%clk 0:00:04.4]} 1-0

[Event "Betsys MČR v online bleskovém šachu 2021"]
[Site "Chess.com"]
[Date "2021.04.17"]
[Round "3"]
[White "Bolavey_Kotnik"]
[Black "Rubinus"]
[Result "0-1"]
[WhiteElo "2358"]
[BlackElo "2153"]
[TimeControl "180+1"]
[EndTime "9:28:13 PDT"]
[Termination "Uživatel Rubinus zvítězil matem"]

1. e4 {[%clk 0:03:00.1]} 1... c5 {[%clk 0:02:55.2]} 2. Nf3 {[%clk 0:02:58]} 2...
d6 {[%clk 0:02:54.7]} 3. d4 {[%clk 0:02:57.9]} 3... cxd4 {[%clk 0:02:54.8]} 4.
Nxd4 {[%clk 0:02:58.8]} 4... Nf6 {[%clk 0:02:55]} 5. Nc3 {[%clk 0:02:59.4]} 5...
a6 {[%clk 0:02:55.5]} 6. Be2 {[%clk 0:02:58.1]} 6... e5 {[%clk 0:02:55.7]} 7.
Nb3 {[%clk 0:02:58]} 7... Be7 {[%clk 0:02:55.8]} 8. O-O {[%clk 0:02:57.6]} 8...
O-O {[%clk 0:02:55.8]} 9. f4 {[%clk 0:02:58.2]} 9... Qc7 {[%clk 0:02:54.7]} 10.
Qe1 {[%clk 0:02:39.3]} 10... b5 {[%clk 0:02:51.7]} 11. a3 {[%clk 0:02:38.6]}
11... Bb7 {[%clk 0:02:50.4]} 12. Bf3 {[%clk 0:02:38.6]} 12... Nbd7 {[%clk
0:02:43.5]} 13. Be3 {[%clk 0:02:36.9]} 13... Nc5 {[%clk 0:02:36.1]} 14. Nxc5
{[%clk 0:02:13.1]} 14... dxc5 {[%clk 0:02:34.5]} 15. Qg3 {[%clk 0:02:12.6]}
15... Bd6 {[%clk 0:02:24]} 16. f5 {[%clk 0:02:03.4]} 16... Rfe8 {[%clk
0:02:12.2]} 17. Bg5 {[%clk 0:01:19]} 17... Qe7 {[%clk 0:02:04.5]} 18. Rad1
{[%clk 0:01:10.7]} 18... b4 {[%clk 0:02:01.1]} 19. Na4 {[%clk 0:00:50.1]} 19...
Kh8 {[%clk 0:01:54.6]} 20. Nb6 {[%clk 0:00:46.7]} 20... Rad8 {[%clk 0:01:52.9]}
21. Nc4 {[%clk 0:00:46.8]} 21... Bc7 {[%clk 0:01:48.2]} 22. Qh4 {[%clk
0:00:43.3]} 22... Rxd1 {[%clk 0:01:36.3]} 23. Rxd1 {[%clk 0:00:41.8]} 23... Rd8
{[%clk 0:01:34.3]} 24. Re1 {[%clk 0:00:28.1]} 24... Rd4 {[%clk 0:01:29.2]} 25.
Ne3 {[%clk 0:00:22.4]} 25... Bxe4 {[%clk 0:01:21.8]} 26. Bxe4 {[%clk 0:00:20]}
26... bxa3 {[%clk 0:01:13.9]} 27. bxa3 {[%clk 0:00:19.1]} 27... c4 {[%clk
0:01:13.1]} 28. Bxf6 {[%clk 0:00:14.9]} 28... gxf6 {[%clk 0:01:11.7]} 29. c3
{[%clk 0:00:14.7]} 29... Rd2 {[%clk 0:01:06.3]} 30. Qg4 {[%clk 0:00:08.3]} 30...
Bb6 {[%clk 0:01:02.9]} 31. h4 {[%clk 0:00:07.6]} 31... Qxa3 {[%clk 0:00:51.1]}
32. h5 {[%clk 0:00:07.8]} 32... Qf8 {[%clk 0:00:50.8]} 33. Kh2 {[%clk
0:00:06.9]} 33... h6 {[%clk 0:00:48.4]} 34. Nd5 {[%clk 0:00:06.9]} 34... Bd8
{[%clk 0:00:39.1]} 35. Re3 {[%clk 0:00:05.8]} 35... Qg7 {[%clk 0:00:36.9]} 36.
Qf3 {[%clk 0:00:04.9]} 36... Qg5 {[%clk 0:00:30]} 37. Re2 {[%clk 0:00:04.2]}
37... Rd1 {[%clk 0:00:26.3]} 38. Qg3 {[%clk 0:00:03.3]} 38... Rh1+ {[%clk
0:00:24.2]} 39. Kxh1 {[%clk 0:00:03]} 39... Qxg3 {[%clk 0:00:24.3]} 40. Bf3
{[%clk 0:00:03.4]} 40... Qh4+ {[%clk 0:00:23.5]} 41. Kg1 {[%clk 0:00:03.9]}
41... Qg5 {[%clk 0:00:21.1]} 42. Kf2 {[%clk 0:00:03.9]} 42... Qc1 {[%clk
0:00:19.7]} 43. Kg3 {[%clk 0:00:02.9]} 43... a5 {[%clk 0:00:18.4]} 44. Ne3
{[%clk 0:00:02]} 44... Qb1 {[%clk 0:00:15.7]} 45. Nxc4 {[%clk 0:00:02.4]} 45...
a4 {[%clk 0:00:13.6]} 46. Be4 {[%clk 0:00:02.9]} 46... Qb3 {[%clk 0:00:09.2]}
47. Nd6 {[%clk 0:00:02.5]} 47... Qxc3+ {[%clk 0:00:08.1]} 48. Bf3 {[%clk
0:00:02.8]} 48... Kg7 {[%clk 0:00:06.9]} 49. Ne4 {[%clk 0:00:03.7]} 49... Qb4
{[%clk 0:00:06.2]} 50. Kh2 {[%clk 0:00:04.6]} 50... a3 {[%clk 0:00:05.3]} 51.
Re3 {[%clk 0:00:05.1]} 51... Bb6 {[%clk 0:00:04.6]} 52. Rd3 {[%clk 0:00:04.9]}
52... a2 {[%clk 0:00:04.6]} 53. Rd7 {[%clk 0:00:05.7]} 53... a1=Q {[%clk
0:00:03.1]} 54. Nd6 {[%clk 0:00:06.6]} 54... Qbe1 {[%clk 0:00:02]} 55. Rxf7+
{[%clk 0:00:05.8]} 55... Kg8 {[%clk 0:00:02]} 56. Bd5 {[%clk 0:00:05.1]} 56...
Qh4# {[%clk 0:00:02.1]} 0-1